[Event "Chessity Nationale Pupillendag 2019 - Groep G"]
[Site "Meppel, Netherlands"]
[Date "2019.06.29"]
[Round "2.3"]
[White "Kumar, Prayan Sai"]
[Black "Zecha, Oscar"]
[Result "0-1"]
[TimeControl "15 min + 10 sec"]
[WhiteElo "428"]
[BlackElo "802"]

1. e4 {[%clk 00:15:17]} {[%emt 00:00:02]} c5 {[%clk 00:15:19]} {[%emt
00:00:01]} 2. Nf3 {[%clk 00:15:25]} {[%emt 00:00:02]} Nc6 {[%clk 00:15:28]}
{[%emt 00:00:01]} 3. Nc3 {[%clk 00:15:31]} {[%emt 00:00:04]} e5 {[%clk
00:15:37]} {[%emt 00:00:01]} 4. Bc4 {[%clk 00:15:38]} {[%emt 00:00:04]} Be7
{[%clk 00:15:45]} {[%emt 00:00:02]} 5. d3 {[%clk 00:15:40]} {[%emt 00:00:06]}
Nf6 {[%clk 00:15:53]} {[%emt 00:00:02]} 6. Be3 {[%clk 00:15:43]} {[%emt
00:00:06]} O-O {[%clk 00:15:59]} {[%emt 00:00:05]} 7. O-O {[%clk 00:15:50]}
{[%emt 00:00:04]} h6 {[%clk 00:16:08]} {[%emt 00:00:01]} 8. h3 {[%clk
00:15:45]} {[%emt 00:00:14]} d6 {[%clk 00:16:13]} {[%emt 00:00:05]} 9. a3
{[%clk 00:15:48]} {[%emt 00:00:07]} Bd7 {[%clk 00:16:16]} {[%emt 00:00:08]} 10.
Re1 {[%clk 00:15:50]} {[%emt 00:00:07]} Re8 {[%clk 00:16:20]} {[%emt 00:00:06]}
11. Rc1 {[%clk 00:15:39]} {[%emt 00:00:21]} a6 {[%clk 00:16:26]} {[%emt
00:00:05]} 12. a4 {[%clk 00:15:37]} {[%emt 00:00:12]} Rc8 {[%clk 00:16:29]}
{[%emt 00:00:07]} 13. Ra1 {[%clk 00:15:36]} {[%emt 00:00:10]} Qc7 {[%clk
00:16:29]} {[%emt 00:00:11]} 14. Nd5 {[%clk 00:15:27]} {[%emt 00:00:19]} Nxd5
{[%clk 00:16:31]} {[%emt 00:00:07]} 15. Bxd5 {[%clk 00:15:33]} {[%emt
00:00:03]} Ra8 {[%clk 00:16:06]} {[%emt 00:00:37]} 16. Re2 {[%clk 00:15:02]}
{[%emt 00:00:41]} b5 {[%clk 00:16:06]} {[%emt 00:00:10]} 17. axb5 {[%emt
00:00:07]} axb5 {[%emt 00:00:02]} 18. Rxa8 {[%clk 00:14:36]} {[%emt 00:00:27]}
Rxa8 {[%clk 00:16:14]} {[%emt 00:00:02]} 19. Qd2 {[%clk 00:14:33]} {[%emt
00:00:12]} Ra1+ {[%clk 00:15:51]} {[%emt 00:00:33]} 20. Re1 {[%clk 00:14:40]}
{[%emt 00:00:03]} Rxe1+ {[%clk 00:15:37]} {[%emt 00:00:25]} 21. Qxe1 {[%clk
00:14:47]} {[%emt 00:00:03]} Qc8 {[%emt 00:00:38]} 22. Bxc6 {[%clk 00:14:29]}
{[%emt 00:00:22]} Bxc6 {[%clk 00:14:58]} {[%emt 00:00:27]} 23. Qa1 {[%clk
00:13:52]} {[%emt 00:00:46]} Bf6 {[%clk 00:14:42]} {[%emt 00:00:27]} 24. Qa2
{[%clk 00:13:31]} {[%emt 00:00:31]} Qd7 {[%clk 00:14:29]} {[%emt 00:00:23]} 25.
Bd2 {[%clk 00:12:51]} {[%emt 00:00:50]} d5 {[%clk 00:14:24]} {[%emt 00:00:15]}
26. exd5 {[%clk 00:12:53]} {[%emt 00:00:07]} Bxd5 {[%clk 00:14:32]} {[%emt
00:00:03]} 27. c4 {[%clk 00:12:36]} {[%emt 00:00:27]} bxc4 {[%clk 00:14:38]}
{[%emt 00:00:04]} 28. dxc4 {[%clk 00:12:43]} {[%emt 00:00:03]} Bxf3 {[%clk
00:14:45]} {[%emt 00:00:03]} 29. gxf3 {[%clk 00:12:00]} {[%emt 00:00:52]} Qxd2
{[%clk 00:14:53]} {[%emt 00:00:03]} 30. Qa8+ {[%clk 00:12:06]} {[%emt
00:00:04]} Kh7 {[%clk 00:14:58]} {[%emt 00:00:05]} 31. Qe4+ {[%clk 00:12:05]}
{[%emt 00:00:11]} Kg8 {[%clk 00:14:57]} {[%emt 00:00:11]} 32. Qa8+ {[%clk
00:12:12]} {[%emt 00:00:03]} Qd8 {[%clk 00:15:04]} {[%emt 00:00:02]} 33. Qa3
{[%clk 00:11:58]} {[%emt 00:00:20]} Qd4 {[%clk 00:14:40]} {[%emt 00:00:38]} 34.
Qc3 {[%clk 00:11:52]} {[%emt 00:00:17]} Qxc3 {[%clk 00:14:46]} {[%emt
00:00:02]} 35. bxc3 {[%clk 00:12:00]} {[%emt 00:00:02]} Kf8 {[%clk 00:14:52]}
{[%emt 00:00:06]} 36. Kf1 {[%clk 00:12:08]} {[%emt 00:00:02]} Ke7 {[%clk
00:14:54]} {[%emt 00:00:08]} 37. Ke2 {[%clk 00:12:15]} {[%emt 00:00:02]} e4
{[%clk 00:14:48]} {[%emt 00:00:18]} 38. fxe4 {[%clk 00:12:21]} {[%emt
00:00:03]} Bxc3 {[%clk 00:14:57]} {[%emt 00:00:02]} 39. Ke3 {[%clk 00:12:23]}
{[%emt 00:00:07]} Kd6 {[%clk 00:14:52]} {[%emt 00:00:16]} 40. Kf4 {[%clk
00:12:29]} {[%emt 00:00:03]} Bd4 {[%clk 00:14:59]} {[%emt 00:00:04]} 41. Kf5
{[%clk 00:12:32]} {[%emt 00:00:06]} Bxf2 {[%clk 00:15:04]} {[%emt 00:00:05]} 42.
e5+ {[%clk 00:12:38]} {[%emt 00:00:03]} Ke7 {[%clk 00:15:11]} {[%emt 00:00:04]}
43. Ke4 {[%clk 00:12:46]} {[%emt 00:00:02]} f6 {[%clk 00:15:09]} {[%emt
00:00:12]} 44. exf6+ {[%clk 00:12:46]} {[%emt 00:00:10]} Kxf6 {[%clk 00:15:17]}
{[%emt 00:00:01]} 45. Kf4 {[%clk 00:12:49]} {[%emt 00:00:07]} g5+ {[%clk
00:15:24]} {[%emt 00:00:04]} 46. Kg4 {[%clk 00:12:57]} {[%emt 00:00:02]} Ke5
{[%clk 00:15:32]} {[%emt 00:00:02]} 47. Kf3 {[%clk 00:13:05]} {[%emt 00:00:02]}
Bh4 {[%clk 00:15:22]} {[%emt 00:00:20]} 48. Ke3 {[%clk 00:13:08]} {[%emt
00:00:07]} h5 {[%clk 00:15:26]} {[%emt 00:00:06]} 49. Kd3 {[%clk 00:13:11]}
{[%emt 00:00:08]} g4 {[%clk 00:15:31]} {[%emt 00:00:05]} 50. hxg4 {[%clk
00:13:18]} {[%emt 00:00:02]} hxg4 {[%clk 00:15:40]} {[%emt 00:00:01]} 51. Ke2
{[%clk 00:13:25]} {[%emt 00:00:02]} Kd4 {[%clk 00:15:49]} {[%emt 00:00:02]} 52.
Kf1 {[%clk 00:13:32]} {[%emt 00:00:03]} Kxc4 {[%clk 00:15:57]} {[%emt
00:00:02]} 53. Kg2 {[%clk 00:13:40]} {[%emt 00:00:01]} Kd4 {[%clk 00:16:04]}
{[%emt 00:00:04]} 54. Kh2 {[%clk 00:13:46]} {[%emt 00:00:04]} c4 {[%clk
00:16:12]} {[%emt 00:00:02]} 55. Kg2 {[%clk 00:13:54]} {[%emt 00:00:01]} c3
{[%clk 00:16:21]} {[%emt 00:00:01]} 56. Kf1 {[%emt 00:00:05]} c2 {[%clk
00:16:25]} {[%emt 00:00:02]} 57. Ke2 {[%clk 00:14:18]} {[%emt 00:00:05]} g3
{[%clk 00:16:34]} {[%emt 00:00:12]} 58. Kd2 {[%clk 00:14:17]} {[%emt 00:00:11]}
g2 {[%clk 00:16:39]} {[%emt 00:00:05]} 59. Kxc2 {[%clk 00:14:25]} {[%emt
00:00:02]} g1=Q {[%clk 00:16:44]} {[%emt 00:00:05]} 60. Kb3 {[%clk 00:14:33]}
{[%emt 00:00:02]} Qc1 {[%clk 00:16:48]} {[%emt 00:00:05]} 61. Ka2 {[%clk
00:14:40]} {[%emt 00:00:03]} Qc8 {[%clk 00:16:47]} {[%emt 00:00:12]} 62. Kb3
{[%clk 00:14:47]} {[%emt 00:00:04]} Qc3+ {[%clk 00:16:55]} {[%emt 00:00:01]} 63.
Ka4 {[%clk 00:14:54]} {[%emt 00:00:03]} Qb2 {[%clk 00:17:02]} {[%emt 00:00:04]}
64. Ka5 {[%clk 00:15:01]} {[%emt 00:00:02]} Kc5 {[%clk 00:17:10]} {[%emt
00:00:02]} 65. Ka6 {[%clk 00:15:08]} {[%emt 00:00:04]} Qb6# {[%emt 00:00:02]}
0-1

[Event "Chessity Nationale Pupillendag 2019 - Groep G"]
[Site "Meppel, Netherlands"]
[Date "2019.06.29"]
[Round "2.4"]
[White "Geldof, Max"]
[Black "Jilesen, Pim"]
[Result "0-1"]
[TimeControl "15 min + 10 sec"]
[WhiteElo "745"]
[BlackElo "434"]

1. e4 e5 2. Nf3 Nc6 3. Nc3 Nf6 4. Bc4 {[%clk 00:15:19]} Nb8 {[%clk 00:15:26]}
{[%emt 00:00:10]} 5. Bf1 {[%clk 00:15:30]} {[%emt 00:34:26]} Nc6 {[%clk
00:15:42]} {[%emt 00:00:02]} 6. Bc4 {[%clk 00:15:38]} {[%emt 00:00:02]} Bb4
{[%clk 00:15:51]} {[%emt 00:00:03]} 7. d3 {[%clk 00:15:45]} {[%emt 00:00:07]}
O-O {[%clk 00:15:54]} {[%emt 00:00:04]} 8. Bg5 {[%clk 00:15:51]} {[%emt
00:00:03]} h6 {[%clk 00:16:01]} {[%emt 00:00:03]} 9. Bh4 {[%clk 00:15:58]}
{[%emt 00:00:03]} d6 {[%clk 00:16:08]} {[%emt 00:00:04]} 10. a3 {[%clk
00:16:04]} {[%emt 00:00:02]} Ba5 {[%clk 00:16:16]} {[%emt 00:00:02]} 11. b4
{[%clk 00:16:12]} {[%emt 00:00:02]} Bb6 {[%clk 00:16:24]} 12. Nd5 {[%clk
00:16:20]} {[%emt 00:00:04]} Bg4 {[%emt 00:00:27]} 13. Nxf6+ {[%clk 00:16:07]}
gxf6 {[%clk 00:16:37]} {[%emt 00:00:02]} 14. c3 {[%clk 00:15:47]} {[%emt
00:00:37]} Kh7 {[%clk 00:16:34]} {[%emt 00:00:37]} 15. O-O {[%emt 00:00:28]}
Ne7 {[%clk 00:16:17]} {[%emt 00:00:10]} 16. h3 {[%clk 00:15:51]} {[%emt
00:00:04]} Bh5 {[%clk 00:16:25]} {[%emt 00:00:02]} 17. Ng5+ {[%clk 00:15:38]}
{[%emt 00:00:23]} fxg5 {[%clk 00:16:22]} {[%emt 00:00:14]} 18. Qxh5 {[%clk
00:15:42]} {[%emt 00:00:05]} gxh4 {[%clk 00:16:28]} {[%emt 00:00:04]} 19. Qxh4
{[%clk 00:15:50]} {[%emt 00:00:03]} Ng6 {[%clk 00:16:27]} {[%emt 00:00:09]} 20.
Qg3 {[%clk 00:15:41]} {[%emt 00:00:19]} Qh4 {[%clk 00:16:22]} {[%emt 00:00:12]}
21. Qf3 {[%clk 00:15:42]} {[%emt 00:00:13]} Qf4 {[%clk 00:16:15]} {[%emt
00:00:16]} 22. Qxf4 {[%clk 00:15:31]} {[%emt 00:00:22]} Nxf4 {[%clk 00:16:19]}
{[%emt 00:00:06]} 23. a4 {[%clk 00:15:31]} {[%emt 00:00:10]} a6 {[%clk
00:16:27]} {[%emt 00:00:03]} 24. a5 {[%clk 00:15:39]} {[%emt 00:00:02]} Ba7
{[%clk 00:16:36]} {[%emt 00:00:01]} 25. Bd5 {[%clk 00:15:34]} {[%emt 00:00:15]}
c6 {[%clk 00:16:39]} {[%emt 00:00:05]} 26. Bc4 {[%clk 00:15:39]} {[%emt
00:00:05]} Ne2+ {[%clk 00:16:39]} {[%emt 00:00:11]} 27. Kh1 {[%clk 00:15:44]}
{[%emt 00:00:06]} b5 {[%clk 00:16:15]} {[%emt 00:00:34]} 28. axb6 {[%clk
00:15:48]} {[%emt 00:00:05]} Bxb6 {[%clk 00:16:23]} {[%emt 00:00:03]} 29. Rxa6
{[%clk 00:15:50]} {[%emt 00:00:09]} Rxa6 {[%clk 00:16:29]} {[%emt 00:00:03]} 30.
Bxa6 {[%clk 00:15:57]} {[%emt 00:00:02]} Nxc3 {[%clk 00:16:32]} {[%emt
00:00:07]} 31. Rc1 {[%clk 00:15:58]} {[%emt 00:00:08]} Bd4 {[%clk 00:16:23]}
{[%emt 00:00:20]} 32. Bb7 {[%clk 00:15:48]} {[%emt 00:00:19]} c5 {[%clk
00:16:30]} {[%emt 00:00:06]} 33. bxc5 {[%clk 00:15:55]} {[%emt 00:00:03]} dxc5
{[%clk 00:16:38]} {[%emt 00:00:02]} 34. Kg1 {[%clk 00:15:41]} {[%emt 00:00:24]}
Rb8 {[%clk 00:16:44]} {[%emt 00:00:05]} 35. Bd5 {[%clk 00:15:45]} {[%emt
00:00:06]} f6 {[%clk 00:16:49]} {[%emt 00:00:03]} 36. Be6 {[%emt 00:00:04]} Rb1
{[%emt 00:00:03]} 37. Rxb1 {[%clk 00:15:44]} {[%emt 00:00:06]} Nxb1 {[%clk
00:16:58]} {[%emt 00:00:02]} 38. Bf5+ {[%clk 00:15:51]} {[%emt 00:00:02]} Kg7
{[%clk 00:17:02]} {[%emt 00:00:06]} 39. Be6 {[%clk 00:15:55]} {[%emt 00:00:06]}
Kf8 {[%clk 00:17:12]} 40. Kf1 {[%clk 00:16:01]} {[%emt 00:00:04]} Ke7 {[%clk
00:17:20]} {[%emt 00:00:01]} 41. Bc4 {[%clk 00:16:09]} {[%emt 00:00:03]} Kd6
{[%clk 00:17:27]} {[%emt 00:00:02]} 42. Ke2 {[%clk 00:16:14]} {[%emt 00:00:06]}
Kc6 {[%clk 00:17:36]} 43. Kf3 {[%clk 00:16:16]} {[%emt 00:00:08]} Nd2+ {[%clk
00:17:39]} {[%emt 00:00:08]} 44. Kg4 {[%clk 00:16:20]} {[%emt 00:00:06]} Bxf2
{[%clk 00:17:33]} {[%emt 00:00:16]} 45. Kf5 {[%clk 00:16:22]} {[%emt 00:00:08]}
Kd6 {[%clk 00:17:31]} {[%emt 00:00:11]} 46. Kxf6 {[%clk 00:16:28]} {[%emt
00:00:05]} h5 {[%clk 00:17:40]} {[%emt 00:00:02]} 47. g4 {[%clk 00:16:15]}
{[%emt 00:00:23]} hxg4 {[%clk 00:17:28]} {[%emt 00:00:22]} 48. hxg4 {[%clk
00:16:24]} {[%emt 00:00:01]} Bh4 {[%clk 00:17:27]} {[%emt 00:00:10]} 49. Kf5
{[%clk 00:16:17]} {[%emt 00:00:17]} Nf3 {[%clk 00:17:29]} {[%emt 00:00:08]} 50.
Bb3 {[%clk 00:16:08]} {[%emt 00:00:20]} Nd4+ {[%clk 00:17:28]} {[%emt
00:00:11]} 51. Kg6 {[%clk 00:16:11]} {[%emt 00:00:06]} Nxb3 {[%clk 00:17:37]}
{[%emt 00:00:02]} 52. g5 {[%clk 00:16:19]} {[%emt 00:00:01]} Bxg5 {[%clk
00:17:45]} {[%emt 00:00:02]} 53. Kxg5 {[%clk 00:16:27]} {[%emt 00:00:02]} Ke6
{[%clk 00:17:43]} {[%emt 00:00:10]} 54. Kg6 {[%clk 00:16:29]} {[%emt 00:00:09]}
Nd2 {[%clk 00:17:51]} {[%emt 00:00:02]} 55. Kg5 {[%clk 00:16:35]} {[%emt
00:00:06]} c4 {[%clk 00:17:58]} {[%emt 00:00:03]} 56. dxc4 {[%clk 00:16:43]}
{[%emt 00:00:02]} Nxc4 {[%clk 00:18:07]} {[%emt 00:00:02]} 57. Kg4 {[%clk
00:16:50]} {[%emt 00:00:02]} Ne3+ {[%clk 00:18:15]} {[%emt 00:00:02]} 58. Kf3
{[%clk 00:16:59]} {[%emt 00:00:01]} Nc4 {[%clk 00:18:22]} {[%emt 00:00:03]} 59.
Ke2 {[%emt 00:00:05]} Nd6 60. Kd3 {[%clk 00:17:13]} {[%emt 00:00:01]} Nxe4
{[%clk 00:18:40]} {[%emt 00:00:02]} 61. Kxe4 {[%clk 00:17:21]} {[%emt
00:00:01]} Kd6 {[%clk 00:18:48]} {[%emt 00:00:02]} 62. Kd3 {[%clk 00:17:25]}
{[%emt 00:00:04]} Kd5 {[%clk 00:18:58]} 63. Ke3 {[%clk 00:17:34]} {[%emt
00:00:03]} e4 {[%clk 00:19:07]} {[%emt 00:00:01]} 64. Kd2 {[%clk 00:17:39]}
{[%emt 00:00:04]} Kd4 {[%clk 00:19:16]} {[%emt 00:00:02]} 65. Ke2 {[%clk
00:17:48]} {[%emt 00:00:01]} e3 {[%clk 00:19:25]} 66. Kd1 {[%clk 00:17:53]}
{[%emt 00:00:05]} Kd3 {[%clk 00:19:34]} {[%emt 00:00:01]} 67. Ke1 {[%clk
00:18:02]} {[%emt 00:00:01]} e2 {[%clk 00:19:42]} {[%emt 00:00:02]} 68. Kf2
{[%clk 00:18:09]} {[%emt 00:00:03]} Kd2 {[%clk 00:19:52]} 69. Kf3 {[%clk
00:18:17]} {[%emt 00:00:02]} e1=Q {[%emt 00:00:04]} 70. Kf4 {[%emt 00:00:03]}
Qe3+ {[%clk 00:19:52]} {[%emt 00:00:03]} 71. Kg4 {[%clk 00:18:24]} {[%emt
00:00:03]} Ke2 {[%clk 00:20:01]} {[%emt 00:00:02]} 72. Kf5 {[%clk 00:18:29]}
{[%emt 00:00:05]} Qd4 {[%clk 00:20:10]} 73. Ke6 {[%clk 00:18:36]} {[%emt
00:00:03]} Ke3 {[%clk 00:20:08]} {[%emt 00:00:13]} 74. Kf5 {[%clk 00:18:44]}
{[%emt 00:00:01]} Qe4+ {[%clk 00:20:17]} {[%emt 00:00:01]} 75. Kf6 {[%clk
00:18:51]} {[%emt 00:00:03]} Kf3 {[%clk 00:20:26]} 76. Kg5 {[%clk 00:18:59]}
{[%emt 00:00:03]} Qf4+ {[%clk 00:20:36]} 77. Kg6 {[%clk 00:19:02]} {[%emt
00:00:06]} Kg4 {[%clk 00:20:44]} {[%emt 00:00:04]} 78. Kg7 {[%clk 00:19:09]}
{[%emt 00:00:01]} Qf5 {[%clk 00:20:53]} {[%emt 00:00:02]} 79. Kh6 {[%clk
00:19:12]} {[%emt 00:00:07]} Qg5+ {[%clk 00:21:03]} 80. Kh7 {[%clk 00:19:20]}
{[%emt 00:00:03]} Kf5 {[%clk 00:21:12]} 81. Kh8 {[%clk 00:19:29]} {[%emt
00:00:02]} Kf6 {[%clk 00:21:21]} {[%emt 00:00:02]} 82. Kh7 {[%emt 00:00:02]}
Qg7+ {[%emt 00:00:02]} 0-1

[Event "Chessity Nationale Pupillendag 2019 - Groep G"]
[Site "Meppel, Netherlands"]
[Date "2019.06.29"]
[Round "2.5"]
[White "Kempenaar, Lutzen"]
[Black "Rooijakkers, Liam"]
[Result "0-1"]
[TimeControl "15 min + 10 sec"]
[WhiteElo "406"]
[BlackElo "733"]

1. d4 {[%clk 00:15:18]} {[%emt 00:00:02]} d5 {[%clk 00:15:19]} {[%emt
00:00:01]} 2. Bf4 {[%clk 00:15:23]} {[%emt 00:00:05]} Nc6 {[%clk 00:15:25]}
{[%emt 00:00:03]} 3. e3 {[%clk 00:15:30]} {[%emt 00:00:04]} Nf6 {[%clk
00:15:32]} {[%emt 00:00:03]} 4. Nc3 {[%clk 00:15:34]} {[%emt 00:00:05]} g6
{[%clk 00:15:38]} {[%emt 00:00:05]} 5. Nf3 {[%clk 00:15:42]} {[%emt 00:00:02]}
Bg7 {[%clk 00:15:44]} {[%emt 00:00:04]} 6. Qd3 {[%clk 00:15:41]} {[%emt
00:00:11]} Bf5 {[%emt 00:00:13]} 7. e4 {[%clk 00:15:42]} {[%emt 00:00:05]} dxe4
{[%clk 00:15:52]} {[%emt 00:00:03]} 8. Qe3 {[%clk 00:15:41]} {[%emt 00:00:09]}
exf3 {[%clk 00:15:51]} {[%emt 00:00:12]} 9. gxf3 {[%emt 00:00:04]} O-O {[%emt
00:00:10]} 10. O-O-O {[%emt 00:00:24]} Qd7 {[%emt 00:00:49]} 11. Bb5 {[%clk
00:15:35]} a6 {[%clk 00:14:55]} {[%emt 00:00:14]} 12. Bxc6 {[%clk 00:15:39]}
{[%emt 00:00:05]} bxc6 {[%clk 00:15:02]} {[%emt 00:00:04]} 13. Rhe1 {[%clk
00:15:28]} {[%emt 00:00:18]} e6 {[%clk 00:15:03]} {[%emt 00:00:12]} 14. Re2
{[%clk 00:15:17]} {[%emt 00:00:21]} Nd5 {[%clk 00:14:53]} {[%emt 00:00:20]} 15.
Nxd5 {[%clk 00:15:15]} {[%emt 00:00:12]} Qxd5 {[%clk 00:15:00]} {[%emt
00:00:03]} 16. Qb3 {[%clk 00:15:09]} {[%emt 00:00:15]} Qxb3 {[%emt 00:00:17]}
17. cxb3 {[%clk 00:15:14]} {[%emt 00:00:01]} Rad8 {[%clk 00:14:55]} {[%emt
00:00:14]} 18. Red2 {[%clk 00:15:16]} {[%emt 00:00:06]} f6 {[%clk 00:14:37]}
{[%emt 00:00:30]} 19. Bxc7 {[%emt 00:00:18]} Rc8 {[%clk 00:14:32]} {[%emt
00:00:10]} 20. Bg3 {[%clk 00:15:14]} {[%emt 00:00:08]} c5 {[%clk 00:14:37]}
{[%emt 00:00:06]} 21. dxc5 {[%clk 00:15:12]} {[%emt 00:00:11]} Rxc5+ {[%clk
00:14:46]} {[%emt 00:00:02]} 22. Rc2 {[%emt 00:00:21]} Rxc2+ {[%emt 00:00:02]}
23. Kb1 {[%clk 00:14:53]} {[%emt 00:00:06]} Rc5+ {[%clk 00:14:49]} {[%emt
00:00:06]} 24. Ka1 {[%clk 00:14:53]} {[%emt 00:00:11]} Rfc8 {[%emt 00:00:17]}
25. a4 {[%clk 00:14:45]} Rc1+ {[%clk 00:15:06]} {[%emt 00:00:03]} 26. Rxc1
{[%clk 00:14:47]} {[%emt 00:00:08]} Rxc1+ {[%clk 00:15:15]} {[%emt 00:00:01]}
27. Ka2 {[%clk 00:14:55]} {[%emt 00:00:02]} Bb1+ {[%clk 00:15:14]} {[%emt
00:00:11]} 28. Ka3 {[%clk 00:15:02]} {[%emt 00:00:04]} Bf8+ {[%clk 00:15:22]}
{[%emt 00:00:02]} 29. b4 {[%clk 00:15:08]} {[%emt 00:00:04]} a5 {[%clk
00:15:26]} {[%emt 00:00:06]} 30. Bf4 {[%emt 00:00:11]} axb4+ {[%emt 00:00:09]}
31. Kb3 {[%clk 00:14:56]} {[%emt 00:00:02]} Bc2+ {[%clk 00:15:33]} {[%emt
00:00:02]} 32. Ka2 {[%clk 00:15:03]} {[%emt 00:00:04]} b3# {[%clk 00:15:40]}
{[%emt 00:00:03]} 0-1

[Event "Chessity Nationale Pupillendag 2019 - Groep G"]
[Site "Meppel, Netherlands"]
[Date "2019.06.29"]
[Round "3.1"]
[White "Huang, Luna"]
[Black "Ziedses des Plantes, Art G"]
[Result "1-0"]
[TimeControl "15 min + 10 sec"]
[WhiteElo "955"]
[BlackElo "597"]

1. e4 {[%clk 00:15:18]} e5 {[%clk 00:15:19]} {[%emt 00:00:01]} 2. Nf3 {[%clk
00:15:26]} {[%emt 00:00:01]} Nc6 {[%clk 00:15:25]} {[%emt 00:00:04]} 3. d4
{[%clk 00:15:35]} {[%emt 00:00:02]} exd4 {[%clk 00:15:27]} {[%emt 00:00:08]} 4.
Nxd4 {[%clk 00:15:44]} {[%emt 00:00:01]} Nxd4 {[%clk 00:15:27]} {[%emt
00:00:10]} 5. Qxd4 {[%clk 00:15:52]} {[%emt 00:00:02]} Nf6 {[%clk 00:15:01]}
{[%emt 00:00:35]} 6. Nc3 {[%clk 00:16:01]} {[%emt 00:00:01]} g6 {[%clk
00:14:20]} {[%emt 00:00:51]} 7. Bg5 {[%clk 00:15:49]} {[%emt 00:00:22]} Bg7
{[%clk 00:14:22]} {[%emt 00:00:08]} 8. e5 {[%clk 00:15:53]} {[%emt 00:00:05]}
Qe7 {[%clk 00:13:50]} {[%emt 00:00:42]} 9. O-O-O {[%clk 00:15:14]} {[%emt
00:00:49]} Qd8 {[%clk 00:12:37]} {[%emt 00:01:24]} 10. exf6 {[%clk 00:15:14]}
{[%emt 00:00:10]} Bf8 {[%clk 00:12:07]} {[%emt 00:00:40]} 11. Re1+ {[%clk
00:15:20]} {[%emt 00:00:04]} Be7 {[%clk 00:11:51]} {[%emt 00:00:25]} 12. fxe7
{[%clk 00:15:17]} {[%emt 00:00:13]} Qxe7 {[%clk 00:11:45]} {[%emt 00:00:16]} 13.
Rxe7+ {[%clk 00:15:26]} {[%emt 00:00:01]} Kf8 {[%clk 00:10:22]} {[%emt
00:01:33]} 14. Qxh8# {[%clk 00:15:21]} {[%emt 00:00:14]} 1-0